fUSD/lending_fUSD_20240822
["ID","MTS","AMOUNT","RATE_DAILY","PERIOD"]
[335598203,1724353841813,-2000.0,0.00010999,2]
[335598204,1724353841823,-627.54484779,0.00010999,2]
[335598205,1724353841832,-151.0,0.00010999,2]
[335598206,1724353841841,-151.0,0.00010999,2]
[335598207,1724353841851,-500.0,0.00010999,2]
[335598208,1724353841860,-500.0,0.00010999,2]
[335598209,1724353841870,-205.293754,0.00010999,2]
[335598210,1724353841880,-504.85214977,0.00010999,2]
[335598211,1724353841889,-500.0,0.00010999,2]
[335598212,1724353841900,-500.0,0.00010999,2]
[335598213,1724353841909,-500.0,0.00010999,2]
[335598214,1724353841918,-500.0,0.00010999,2]
[335598215,1724353841928,-200.0,0.00010999,2]
[335598216,1724353841937,-500.0,0.00010999,2]
[335598217,1724353841947,-438.7,0.00010999,2]
[335598218,1724353841956,-500.0,0.00010999,2]
[335598219,1724353841966,-500.0,0.00010999,2]
[335598220,1724353841975,-151.0,0.00010999,2]
[335598221,1724353841984,-151.0,0.00010999,2]
[335598222,1724353841993,-151.0,0.00010999,2]
[335598223,1724353842003,-151.0,0.00010999,2]
[335598224,1724353842012,-151.0,0.00010999,2]
[335598225,1724353842021,-151.0,0.00010999,2]
[335598226,1724353842031,-20000.0,0.00010999,2]
[335598227,1724353842041,-5520.51364129,0.00010999,2]
[335598228,1724353842051,-151.0,0.00010999,2]
[335598229,1724353842060,-500.0,0.00010999,2]
[335598230,1724353842070,-500.0,0.00010999,2]
[335598231,1724353842080,-500.0,0.00010999,2]
[335598232,1724353842090,-500.0,0.00010999,2]
[335598233,1724353842099,-500.0,0.00010999,2]
[335598234,1724353842109,-500.0,0.00010999,2]
[335598235,1724353842118,-500.0,0.00010999,2]
[335598236,1724353842128,-500.0,0.00010999,2]
[335598237,1724353842137,-541.31,0.00010999,2]
[335598238,1724353842147,-500.0,0.00010999,2]
[335598239,1724353842157,-500.0,0.00010999,2]
[335598240,1724353842167,-443.31,0.00010999,2]
[335598241,1724353842176,-500.0,0.00010999,2]
[335598242,1724353842185,-151.0,0.00010999,2]
[335598243,1724353842195,-151.0,0.00010999,2]
[335598244,1724353842205,-161.153664,0.00010999,2]
[335598245,1724353842214,-500.0,0.00010999,2]
[335598246,1724353842224,-500.0,0.00010999,2]
[335598247,1724353842233,-500.0,0.00010999,2]
[335598248,1724353842243,-500.0,0.00010999,2]
[335598249,1724353842253,-500.0,0.00010999,2]
[335598250,1724353842263,-500.0,0.00010999,2]
[335598251,1724353842272,-151.0,0.00010999,2]
[335598252,1724353842282,-151.0,0.00010999,2]
[335598253,1724353842291,-151.0,0.00010999,2]
[335598254,1724353842301,-183.05058,0.00010999,2]
[335598255,1724353842310,-183.05058,0.00010999,2]
[335598256,1724353842320,-183.05058,0.00010999,2]
[335598257,1724353842329,-183.05058,0.00010999,2]
[335598258,1724353842339,-183.05058,0.00010999,2]
[335598259,1724353842348,-183.05058,0.00010999,2]
[335598260,1724353842357,-500.0,0.00010999,2]
[335598261,1724353842367,-500.0,0.00010999,2]
[335598262,1724353842376,-500.0,0.00010999,2]
[335598263,1724353842386,-500.0,0.00010999,2]
[335598264,1724353842395,-500.0,0.00010999,2]
[335598265,1724353842405,-500.0,0.00010999,2]
[335598266,1724353842416,-500.0,0.00010999,2]
[335598267,1724353842426,-151.0,0.00010999,2]
[335598268,1724353842435,-151.0,0.00010999,2]
[335598269,1724353842444,-151.0,0.00010999,2]
[335598270,1724353842453,-500.0,0.00010999,2]
[335598271,1724353842463,-500.0,0.00010999,2]
[335598272,1724353842473,-500.0,0.00010999,2]
[335598273,1724353842482,-624.23,0.00010999,2]
[335598274,1724353842491,-151.0,0.00010999,2]
[335598275,1724353842501,-151.0,0.00010999,2]
[335598276,1724353842511,-151.0,0.00010999,2]
[335598277,1724353842520,-151.0,0.00010999,2]
[335598278,1724353842529,-150.0,0.00010999,2]
[335598279,1724353842539,-150.0,0.00010999,2]
[335598280,1724353842548,-150.0,0.00010999,2]
[335598281,1724353842562,-150.0,0.00010999,2]
[335598282,1724353842572,-150.0,0.00010999,2]
[335598283,1724353842582,-150.0,0.00010999,2]
[335598284,1724353842591,-150.0,0.00010999,2]
[335598285,1724353842601,-150.0,0.00010999,2]
[335598286,1724353842610,-150.0,0.00010999,2]
[335598287,1724353842619,-150.0,0.00010999,2]
[335598288,1724353842629,-150.0,0.00010999,2]
[335598289,1724353842639,-150.0,0.00010999,2]
[335598290,1724353842649,-150.0,0.00010999,2]
[335598291,1724353842663,-297.73714636,0.00010999,2]
[335598292,1724353842673,-151.0,0.00010999,2]
[335598293,1724353842683,-151.0,0.00010999,2]
[335598294,1724353842692,-281.212995,0.00010999,2]
[335598295,1724353842702,-151.0,0.00010999,2]
[335598296,1724353842711,-151.0,0.00010999,2]
[335598297,1724353842721,-151.0,0.00010999,2]
[335598298,1724353842730,-151.0,0.00010999,2]
[335598299,1724353842740,-151.0,0.00010999,2]
[335598300,1724353842749,-151.0,0.00010999,2]
[335598301,1724353842759,-151.0,0.00010999,2]
[335598302,1724353842768,-151.962635,0.00010999,2]
[335598303,1724353842778,-151.0,0.00010999,2]
[335598304,1724353842788,-151.0,0.00010999,2]
[335598305,1724353842798,-151.0,0.00010999,2]
[335598306,1724353842807,-151.0,0.00010999,2]
[335598307,1724353842816,-151.0,0.00010999,2]
[335598308,1724353842826,-204.560745,0.00010999,2]
[335598309,1724353842835,-500.0,0.00010999,2]
[335598310,1724353842845,-500.0,0.00010999,2]
[335598311,1724353842855,-500.0,0.00010999,2]
[335598312,1724353842865,-500.0,0.00010999,2]
[335598313,1724353842875,-151.0,0.00010999,2]
[335598314,1724353842884,-151.0,0.00010999,2]
[335598315,1724353842894,-151.0,0.00010999,2]
[335598316,1724353842905,-151.0,0.00010999,2]
[335598317,1724353842914,-151.0,0.00010999,2]
[335598318,1724353842924,-151.0,0.00010999,2]
[335598319,1724353842934,-151.0,0.00010999,2]
[335598320,1724353842944,-151.0,0.00010999,2]
[335598321,1724353842954,-151.0,0.00010999,2]
[335598322,1724353842964,-151.0,0.00010999,2]
[335598323,1724353842974,-500.0,0.00010999,2]
[335598324,1724353842984,-500.0,0.00010999,2]
[335598325,1724353842994,-510.14420653,0.00010999,2]
[335598326,1724353843003,-500.0,0.00010999,2]
[335598327,1724353843012,-500.0,0.00010999,2]
[335598328,1724353843022,-500.0,0.00010999,2]
[335598329,1724353843032,-500.0,0.00010999,2]
[335598330,1724353843042,-500.0,0.00010999,2]
[335598331,1724353843051,-500.0,0.00010999,2]
[335598332,1724353843061,-86.90488542,0.00010999,2]
[335598333,1724353843256,-413.09511458,0.00010999,2]
[335598334,1724353843266,-500.0,0.00010999,2]
[335598335,1724353843275,-500.0,0.00010999,2]
[335598336,1724353843285,-500.0,0.00010999,2]
[335598337,1724353843294,-374.3,0.00010999,2]
[335598338,1724353843304,-152.243331,0.00010999,2]
[335598339,1724353843313,-151.0,0.00010999,2]
[335598340,1724353843323,-151.0,0.00010999,2]
[335598341,1724353843332,-151.0,0.00010999,2]
[335598342,1724353843341,-151.0,0.00010999,2]
[335598343,1724353843351,-151.0,0.00010999,2]
[335598344,1724353843361,-151.0,0.00010999,2]
[335598345,1724353843370,-151.0,0.00010999,2]
[335598346,1724353843417,-151.0,0.00010999,2]
[335598347,1724353843427,-151.0,0.00010999,2]
[335598348,1724353843436,-151.0,0.00010999,2]
[335598349,1724353843446,-151.0,0.00010999,2]
[335598350,1724353843456,-151.0,0.00010999,2]
[335598351,1724353843465,-500.0,0.00010999,2]
[335598352,1724353843475,-312.32399995,0.00010999,2]
[335598353,1724353843491,-187.67600005,0.00010999,2]
[335598354,1724353843501,-500.0,0.00010999,2]
[335598356,1724353843510,-441.43229922,0.00010999,2]
[335598357,1724353843521,-58.56770078,0.00010999,2]
[335598358,1724353843531,-500.0,0.00010999,2]
[335598359,1724353843540,-409.52007337,0.00010999,2]
[335598360,1724353843551,-90.47992663,0.00010999,2]
[335598361,1724353843561,-489.85462457,0.00010999,2]
[335598362,1724353843573,-10.14537543,0.00010999,2]
[335598363,1724353843582,-500.0,0.00010999,2]
[335598364,1724353843591,-500.0,0.00010999,2]
[335598365,1724353843600,-500.0,0.00010999,2]
[335598366,1724353843610,-500.0,0.00010999,2]
[335598367,1724353843620,-427.24821158,0.00010999,2]
[335598371,1724353844467,-72.75178842,0.00010999,2]
[335598372,1724353844477,-500.0,0.00010999,2]
[335598373,1724353844486,-500.0,0.00010999,2]
[335598374,1724353844496,-151.62913928,0.00010999,2]
[335598396,1724353846126,-78.24086072,0.00010999,2]
[335598397,1724353846136,-629.03902958,0.00010999,2]
[335598399,1724353846145,-151.915282,0.00010999,2]
[335598401,1724353846161,-151.0,0.00010999,2]
[335598403,1724353846171,-151.0,0.00010999,2]
[335598405,1724353846181,-151.0,0.00010999,2]
[335598407,1724353846191,-151.0,0.00010999,2]
[335598409,1724353846202,-151.0,0.00010999,2]
[335598411,1724353846211,-151.0,0.00010999,2]
[335598413,1724353846221,-151.0,0.00010999,2]
[335598415,1724353846231,-151.0,0.00010999,2]
[335598417,1724353846239,-384.41700284,0.00010999,2]
[335598419,1724353846248,-151.0,0.00010999,2]
[335598421,1724353846257,-151.0,0.00010999,2]
[335598422,1724353846267,-151.0,0.00010999,2]
[335598423,1724353846276,-202.659344,0.00010999,2]
[335598424,1724353846286,-151.0,0.00010999,2]
[335598425,1724353846296,-151.0,0.00010999,2]
[335598426,1724353846306,-151.0,0.00010999,2]
[335598427,1724353846316,-151.0,0.00010999,2]
[335598428,1724353846326,-151.0,0.00010999,2]
[335598429,1724353846336,-500.0,0.00010999,2]
[335598430,1724353846346,-500.0,0.00010999,2]
[335598431,1724353846355,-151.0,0.00010999,2]
[335598432,1724353846365,-151.0,0.00010999,2]
[335598433,1724353846375,-151.0,0.00010999,2]
[335598434,1724353846384,-151.0,0.00010999,2]
[335598435,1724353846393,-151.0,0.00010999,2]
[335598436,1724353846404,-151.0,0.00010999,2]
[335598437,1724353846413,-151.0,0.00010999,2]
[335598438,1724353846423,-151.0,0.00010999,2]
[335598439,1724353846432,-151.0,0.00010999,2]
[335598440,1724353846442,-151.0,0.00010999,2]
[335598441,1724353846451,-468.476151,0.00010999,2]
[335598442,1724353846460,-468.476151,0.00010999,2]
[335598443,1724353846470,-468.476151,0.00010999,2]
[335598444,1724353846480,-468.476151,0.00010999,2]
[335598445,1724353846489,-468.476151,0.00010999,2]
[335598446,1724353846499,-468.476151,0.00010999,2]
[335598447,1724353846508,-468.476151,0.00010999,2]
[335598448,1724353846517,-468.476151,0.00010999,2]
[335598449,1724353846527,-468.476151,0.00010999,2]
[335598450,1724353846536,-468.476151,0.00010999,2]
[335598451,1724353846545,-841.917364,0.00010999,2]
[335598452,1724353846554,-841.917364,0.00010999,2]
[335598453,1724353846565,-841.917364,0.00010999,2]
[335598454,1724353846575,-841.917364,0.00010999,2]
[335598455,1724353846584,-151.0,0.00010999,2]
[335598456,1724353846594,-841.917364,0.00010999,2]
[335598457,1724353846603,-151.0,0.00010999,2]
[335598458,1724353846613,-151.0,0.00010999,2]
[335598459,1724353846623,-203.741502,0.00010999,2]
[335598460,1724353846633,-841.917364,0.00010999,2]
[335598461,1724353846643,-841.917364,0.00010999,2]
[335598462,1724353846654,-151.0,0.00010999,2]
[335598463,1724353846664,-841.917364,0.00010999,2]
[335598464,1724353846674,-151.0,0.00010999,2]
[335598465,1724353846683,-151.0,0.00010999,2]
[335598466,1724353846693,-841.917364,0.00010999,2]
[335598467,1724353846703,-841.917364,0.00010999,2]
[335598468,1724353846712,-288.770489,0.00010999,2]
[335598469,1724353846722,-288.770489,0.00010999,2]
[335598470,1724353846733,-288.770489,0.00010999,2]
[335598471,1724353846742,-288.770489,0.00010999,2]
[335598472,1724353846753,-288.770489,0.00010999,2]
[335598473,1724353846762,-288.770489,0.00010999,2]
[335598474,1724353846771,-288.770489,0.00010999,2]
[335598475,1724353846780,-288.770489,0.00010999,2]
[335598476,1724353846790,-288.770489,0.00010999,2]
[335598477,1724353846799,-345.653395,0.00010999,2]
[335598478,1724353846809,-288.770489,0.00010999,2]
[335598479,1724353846818,-345.653395,0.00010999,2]
[335598480,1724353846828,-345.653395,0.00010999,2]
[335598481,1724353846838,-345.653395,0.00010999,2]
[335598482,1724353846847,-345.653395,0.00010999,2]
[335598483,1724353846856,-548.593655,0.00010999,2]
[335598484,1724353846866,-548.593655,0.00010999,2]
[335598485,1724353846875,-548.593655,0.00010999,2]
[335598486,1724353846884,-548.593655,0.00010999,2]
[335598487,1724353846893,-548.593655,0.00010999,2]
[335598488,1724353846904,-345.653395,0.00010999,2]
[335598489,1724353846913,-345.653395,0.00010999,2]
[335598490,1724353846923,-345.653395,0.00010999,2]
[335598491,1724353846932,-345.653395,0.00010999,2]
[335598492,1724353846941,-345.653395,0.00010999,2]
[335598493,1724353846950,-548.593655,0.00010999,2]
[335598494,1724353846960,-548.593655,0.00010999,2]
[335598495,1724353846969,-548.593655,0.00010999,2]
[335598496,1724353846979,-548.593655,0.00010999,2]
[335598497,1724353846988,-548.593655,0.00010999,2]
[335598498,1724353846998,-151.0,0.00010999,2]
[335598499,1724353847009,-151.0,0.00010999,2]
[335598500,1724353847019,-218.979717,0.00010999,2]
[335598501,1724353847028,-190.730582,0.00010999,2]
[335598502,1724353847038,-190.730582,0.00010999,2]
[335598503,1724353847047,-190.730582,0.00010999,2]
[335598504,1724353847057,-190.730582,0.00010999,2]
[335598505,1724353847066,-190.730582,0.00010999,2]
[335598506,1724353847076,-190.730582,0.00010999,2]
[335598507,1724353847085,-190.730582,0.00010999,2]
[335598508,1724353847095,-190.730582,0.00010999,2]
[335598509,1724353847104,-190.730582,0.00010999,2]
[335598510,1724353847115,-190.730582,0.00010999,2]
[335598511,1724353847125,-151.0,0.00010999,2]
[335598512,1724353847135,-151.0,0.00010999,2]
[335598513,1724353847145,-151.0,0.00010999,2]
[335598514,1724353847156,-151.0,0.00010999,2]
[335598515,1724353847166,-151.0,0.00010999,2]
[335598516,1724353847175,-151.0,0.00010999,2]
[335598517,1724353847185,-151.0,0.00010999,2]
[335598518,1724353847195,-151.0,0.00010999,2]
[335598519,1724353847205,-151.0,0.00010999,2]
[335598520,1724353847214,-260.317799,0.00010999,2]
[335598521,1724353847224,-151.0,0.00010999,2]
[335598522,1724353847233,-151.0,0.00010999,2]
[335598523,1724353847243,-151.0,0.00010999,2]
[335598524,1724353847252,-151.0,0.00010999,2]
[335598525,1724353847262,-151.0,0.00010999,2]
[335598526,1724353847271,-301.628275,0.00010999,2]
[335598527,1724353847281,-301.628275,0.00010999,2]
[335598528,1724353847290,-151.0,0.00010999,2]
[335598529,1724353847300,-301.628275,0.00010999,2]
[335598530,1724353847310,-151.0,0.00010999,2]
[335598531,1724353847319,-301.628275,0.00010999,2]
[335598532,1724353847329,-151.0,0.00010999,2]
[335598533,1724353847339,-151.0,0.00010999,2]
[335598534,1724353847348,-301.628275,0.00010999,2]
[335598535,1724353847357,-151.0,0.00010999,2]
[335598536,1724353847367,-301.628275,0.00010999,2]
[335598537,1724353847376,-151.0,0.00010999,2]
[335598538,1724353847386,-151.0,0.00010999,2]
[335598539,1724353847395,-274.070958,0.00010999,2]
[335598540,1724353847407,-151.0,0.00010999,2]
[335598541,1724353847416,-151.0,0.00010999,2]
[335598542,1724353847426,-151.0,0.00010999,2]
[335598543,1724353847436,-301.628275,0.00010999,2]
[335598544,1724353847446,-301.628275,0.00010999,2]
[335598545,1724353847455,-301.628275,0.00010999,2]
[335598546,1724353847465,-301.628275,0.00010999,2]
[335598547,1724353847474,-265.34005,0.00010999,2]
[335598548,1724353847483,-301.628275,0.00010999,2]
[335598549,1724353847492,-200.0,0.00010999,2]
[335598550,1724353847502,-301.628275,0.00010999,2]
[335598551,1724353847511,-204.833329,0.00010999,2]
[335598552,1724353847520,-204.833329,0.00010999,2]
[335598553,1724353847529,-204.833329,0.00010999,2]
[335598554,1724353847540,-204.833329,0.00010999,2]
[335598555,1724353847553,-204.833329,0.00010999,2]
[335598556,1724353847565,-204.833329,0.00010999,2]
[335598557,1724353847575,-204.833329,0.00010999,2]
[335598558,1724353847585,-204.833329,0.00010999,2]
[335598559,1724353847594,-204.833329,0.00010999,2]
[335598560,1724353847604,-204.833329,0.00010999,2]
[335598561,1724353847615,-204.833329,0.00010999,2]
[335598562,1724353847625,-204.833329,0.00010999,2]
[335598563,1724353847635,-151.0,0.00010999,2]
[335598564,1724353847648,-151.0,0.00010999,2]
[335598565,1724353847660,-151.0,0.00010999,2]
[335598566,1724353847669,-151.0,0.00010999,2]
[335598567,1724353847679,-151.0,0.00010999,2]
[335598568,1724353847688,-151.0,0.00010999,2]
[335598569,1724353847697,-293.795728,0.00010999,2]
[335598570,1724353847707,-293.795728,0.00010999,2]
[335598571,1724353847716,-180.220132,0.00010999,2]
[335598572,1724353847726,-293.795728,0.00010999,2]
[335598573,1724353847737,-180.220132,0.00010999,2]
[335598574,1724353847747,-180.220132,0.00010999,2]
[335598575,1724353847758,-293.795728,0.00010999,2]
[335598576,1724353847768,-180.220132,0.00010999,2]
[335598577,1724353847778,-293.795728,0.00010999,2]
[335598578,1724353847787,-293.795728,0.00010999,2]
[335598579,1724353847797,-180.220132,0.00010999,2]
[335598580,1724353847808,-180.220132,0.00010999,2]
[335598581,1724353847819,-194.47185454,0.00010999,2]
[335598582,1724353847829,-537.0,0.00011,2]
[335598583,1724353847838,-232214.79351172,0.00011,2]
[335598584,1724353847850,-115963.26519812,0.00011,2]
[335598586,1724353943621,-1277.449369,0.00023835,120]
[335598587,1724353943656,-1998722.550631,0.00025,60]
[335598588,1724353956503,-2000000.0,0.00025,60]
[335598589,1724353960465,-2000000.0,0.00025,60]
[335598590,1724354010319,-3000000.0,0.00025,60]
[335598591,1724354013849,-2540516.63218909,0.00025,60]
[335598592,1724354194866,175.53,8.219e-05,2]
[335598593,1724354231463,500.0,0.0001,2]
[335598594,1724354362676,500.0,0.0001,2]
[335598595,1724354388757,427.71,9.973e-05,2]
[335598596,1724354421122,337.72,9.976e-05,2]
[335598597,1724354428114,500.0,0.0001,2]
[335598598,1724354428868,500.0,0.0001,2]
[335598599,1724354429622,500.0,0.0001,2]
[335598600,1724354430378,500.0,0.0001,2]
[335598601,1724354495635,601.94,0.0001,2]
[335598602,1724354559741,500.0,0.0001,2]
[335598603,1724354561165,500.0,0.0001,2]
[335598604,1724354663154,166.75,8.219e-05,2]
[335598605,1724354691781,500.0,0.0001,2]
[335598606,1724354692530,500.0,0.0001,2]
[335598607,1724354693279,500.0,0.0001,2]
[335598608,1724354694031,500.0,0.0001,2]
[335598609,1724354694799,500.0,0.0001,2]
[335598610,1724354695542,500.0,0.0001,2]
[335598611,1724354760713,500.0,0.0001,2]
[335598612,1724354761495,500.0,0.0001,2]
[335598613,1724354762247,638.25,0.0001,2]
[335598622,1724354954880,4773.7,9.946e-05,2]
[335598633,1724355011112,535.48,9.947e-05,2]
[335598637,1724355032206,-250.0,0.00010036,2]
[335598638,1724355032215,-166.75,0.0001048,2]
[335598639,1724355032225,-3939.36827943,0.00010505,2]
[335598640,1724355032234,-698.78752827,0.00010514,2]
[335598641,1724355032320,-1639.50400978,0.00010514,2]
[335598642,1724355032329,-160.470016,0.00010614,2]
[335598643,1724355032338,-1139.1217656,0.00010713,2]
[335598644,1724355032348,-1261.8627,0.00010799,2]
[335598645,1724355032357,-150.0,0.00010799,2]
[335598646,1724355032366,-904.9556,0.000108,2]
[335598647,1724355032375,-3991.35765934,0.000108,2]
[335598648,1724355032386,-1891.96129736,0.000108,2]
[335598649,1724355032397,-425.02451229,0.000108,2]
[335598650,1724355032441,-3899.68620111,0.000108,2]
[335598672,1724355038326,-22855.9659299,0.000108,2]
[335598673,1724355038337,-203.60009498,0.00010862,2]
[335598674,1724355038346,-156.31816983,0.00010862,2]
[335598675,1724355038356,-349.15124606,0.00010862,2]
[335598676,1724355038365,-155.0,0.00010862,2]
[335598677,1724355038375,-31283.05117866,0.0001088,2]
[335598678,1724355038384,-155.57632228,0.00010888,2]
[335598679,1724355038394,-160.14059563,0.00010888,2]
[335598680,1724355038403,-205.19453,0.0001089,2]
[335598681,1724355038413,-936.85061,0.0001089,2]
[335598682,1724355038422,-347.69615481,0.0001089,2]
[335598683,1724355038431,-155.0,0.0001089,2]
[335598684,1724355038441,-155.0,0.0001089,2]
[335598685,1724355038632,-304.16311529,0.00010898,2]
[335598686,1724355038642,-33047.1214,0.00010899,2]
[335598687,1724355038652,-7500.0,0.00010899,2]
[335598688,1724355038661,-500.0,0.00010899,2]
[335598689,1724355038671,-500.0,0.00010899,2]
[335598690,1724355038681,-500.0,0.00010899,2]
[335598692,1724355038690,-500.0,0.00010899,2]
[335598693,1724355038700,-500.0,0.00010899,2]
[335598694,1724355038709,-500.0,0.00010899,2]
[335598695,1724355038719,-615.6604356,0.00010899,2]
[335598696,1724355038728,-500.0,0.00010899,2]
[335598697,1724355038737,-500.0,0.00010899,2]
[335598698,1724355038747,-160.92495855,0.00010899,2]
[335598699,1724355038756,-500.0,0.00010899,2]
[335598700,1724355038766,-500.0,0.00010899,2]
[335598701,1724355038775,-500.0,0.00010899,2]
[335598702,1724355038785,-500.0,0.00010899,2]
[335598703,1724355038795,-500.0,0.00010899,2]
[335598704,1724355038804,-500.0,0.00010899,2]
[335598705,1724355038813,-500.0,0.00010899,2]
[335598706,1724355038822,-500.0,0.00010899,2]
[335598707,1724355038832,-500.0,0.00010899,2]
[335598708,1724355038841,-10149.89,0.00010899,2]
[335598709,1724355038851,-500.0,0.00010899,2]
[335598710,1724355038861,-500.0,0.00010899,2]
[335598711,1724355038870,-500.0,0.00010899,2]
[335598712,1724355038880,-500.0,0.00010899,2]
[335598713,1724355038889,-500.0,0.00010899,2]
[335598714,1724355038899,-500.0,0.00010899,2]
[335598715,1724355038908,-485.18668102,0.00010899,2]
[335598716,1724355038919,-155.43879753,0.00010899,2]
[335598717,1724355038930,-5280.34151478,0.00010899,2]
[335598718,1724355038940,-5280.34151471,0.00010899,2]
[335598719,1724355038950,-5280.34151471,0.00010899,2]
[335598720,1724355038960,-5280.34151471,0.00010899,2]
[335598721,1724355038970,-215.2327978,0.00010899,2]
[335598722,1724355038980,-3350.28108851,0.00010899,2]
[335598723,1724355038991,-466.96530999,0.00010899,2]
[335598726,1724355040480,-412.55976848,0.0001089,2]
[335598727,1724355040490,-1463.09511621,0.00010899,2]
[335598728,1724355040500,-563.49326193,0.00010899,2]
[335598729,1724355040511,-667.4499999,0.00010899,2]
[335598730,1724355040523,-348.33,0.00010899,2]
[335598731,1724355040538,-474.621015,0.00010899,2]
[335598732,1724355040557,-272.8565641,0.00010899,2]
[335598733,1724355040685,-2256.33146258,0.00010899,2]
[335598734,1724355040697,-552.33090042,0.00010899,2]
[335598735,1724355040722,-144.92831078,0.00010899,2]
[335598736,1724355040732,-5280.34151471,0.00010899,2]
[335598737,1724355040741,-32656.7238,0.000109,2]
[335598738,1724355040751,-5095.2996,0.000109,2]
[335598739,1724355040761,-500.0,0.000109,2]
[335598740,1724355040770,-18705.4386,0.000109,2]
[335598741,1724355040779,-531.53,0.000109,2]
[335598742,1724355040789,-157.10906008,0.000109,2]
[335598743,1724355040799,-205.19453,0.000109,2]
[335598744,1724355040809,-572.29,0.00010908,2]
[335598745,1724355040818,-205.19453,0.0001094,2]
[335598746,1724355040827,-282.72505867,0.00010949,2]
[335598747,1724355040837,-155.0,0.00010949,2]
[335598748,1724355040847,-402.25,0.00010959,2]
[335598749,1724355040856,-599.6,0.00010959,2]
[335598750,1724355040866,-250.0,0.00010959,2]
[335598751,1724355040875,-1074.67923523,0.00010979,2]
[335598752,1724355040885,-440.08291615,0.00010979,2]
[335598753,1724355040894,-296.78650666,0.00010979,2]
[335598754,1724355040904,-205.19454,0.0001098,2]
[335598755,1724355040913,-500.0,0.00010994,2]
[335598756,1724355040924,-500.56310055,0.00010994,2]
[335598757,1724355040933,-306.46521156,0.00010994,2]
[335598758,1724355040943,-65244.17436662,0.00010995,2]
[335598773,1724355043286,-168.88,0.00010862,2]
[335598774,1724355043296,-5280.34151471,0.00010899,2]
[335598775,1724355043306,-639.77,0.000109,2]
[335598776,1724355043315,-15283.10800352,0.00010995,2]
[335598780,1724355044185,-22850.13228136,0.00010995,2]
[335598795,1724355046257,-367.971,0.00010987,2]
[335598796,1724355046265,-6298.02501254,0.00010995,2]
[335598797,1724355046278,-11495.0,0.00010995,2]
[335598798,1724355046378,-407.37144464,0.00010995,2]
[335598799,1724355046506,-332.78,0.00010995,2]
[335598807,1724355169727,182.76,8.382e-05,2]
[335598811,1724355282319,500.0,0.0001,2]
[335598812,1724355283112,179.0,0.0001,2]
[335598813,1724355413461,500.0,0.0001,2]
[335598814,1724355414214,500.0,0.0001,2]
[335598815,1724355414968,227.71,0.0001,2]
[335598816,1724355417474,197.27215158,0.00010009,2]
[335598817,1724355428811,653.64489815,0.00010009,2]
[335598818,1724355481143,267.74,9.983e-05,2]
[335598819,1724355491404,1050.0,0.0001,2]
[335598820,1724355536084,160.08,9.968e-05,2]
[335598821,1724355773473,173.62,8.219e-05,2]
[335598822,1724355871254,183.97,0.0001,2]
[335598823,1724356019295,302.19,9.96e-05,2]
[335598824,1724356047585,267.74,9.958e-05,2]
[335598831,1724356152037,1000.0,9.955e-05,2]
[335598837,1724356166045,155.0,0.00010009,2]